bitfinex/quotes_BTCUSD_20250711
["timestamp","ask_amount","ask_price","bid_price","bid_amount"]
[1752276189899,0.74724556,117520.0,117510.0,0.14814]
[1752276190720,1.12898012,117520.0,117510.0,0.14814]
[1752276196323,1.12898012,117520.0,117510.0,0.35206]
[1752276198849,0.365511,117520.0,117510.0,0.37148]
[1752276199053,0.93830638,117520.0,117510.0,0.37148]
[1752276199611,0.93830638,117520.0,117510.0,0.37351]
[1752276199612,0.365511,117520.0,117510.0,0.37351]
[1752276199802,0.93830638,117520.0,117510.0,0.37351]
[1752276201793,0.025511,117520.0,117510.0,0.37351]
[1752276201988,0.59830638,117520.0,117510.0,0.37351]
[1752276202197,0.93830638,117520.0,117510.0,0.37351]
[1752276202766,0.65190869,117520.0,117510.0,0.37351]
[1752276202959,0.74731976,117520.0,117510.0,0.37351]
[1752276210961,0.365511,117520.0,117510.0,0.37351]
[1752276211202,0.74731976,117520.0,117510.0,0.37351]
[1752276211723,0.365511,117520.0,117510.0,0.20392]
[1752276211961,0.74731976,117520.0,117510.0,0.20595]
[1752276212604,0.365511,117520.0,117510.0,0.20595]
[1752276212750,0.74731976,117520.0,117510.0,0.20595]
[1752276212957,0.74731976,117520.0,117510.0,0.33647]
[1752276213719,0.74731976,117520.0,117510.0,0.33949]
[1752276214821,0.74731976,117520.0,117510.0,0.37009]
[1752276217387,0.74935976,117520.0,117510.0,0.37009]
[1752276217602,1.13439852,117520.0,117510.0,0.33444]
[1752276217822,1.16509852,117520.0,117510.0,0.33444]
[1752276222942,1.2650693,117520.0,117510.0,0.20392]
[1752276223132,1.2650693,117520.0,117510.0,0.3344]
[1752276225024,1.36094071,117520.0,117510.0,0.3344]
[1752276225859,2.22242964,117520.0,117510.0,0.3344]
[1752276226287,1.36294071,117520.0,117510.0,0.3344]
[1752276226921,1.26753652,117520.0,117510.0,0.3344]
[1752276229741,0.34,117510.0,117500.0,0.20396]
[1752276229917,0.8454823,117510.0,117500.0,0.20396]
[1752276230149,0.86002315,117510.0,117500.0,0.20396]
[1752276230508,0.88553915,117510.0,117500.0,0.20396]
[1752276230877,0.88553915,117510.0,117500.0,0.33444]
[1752276231281,0.88553915,117510.0,117480.0,0.03462]
[1752276231485,0.38204237,117490.0,117480.0,0.03462]
[1752276231739,0.38204237,117490.0,117480.0,0.03678]
[1752276231876,0.38104237,117490.0,117480.0,0.03678]
[1752276232533,0.38104237,117490.0,117480.0,0.16726]
[1752276232734,0.38204237,117490.0,117480.0,0.17026]
[1752276233165,0.40755837,117490.0,117480.0,0.17026]
[1752276233456,0.40755837,117490.0,117480.0,0.37522]
[1752276233628,0.40755837,117490.0,117480.0,0.37122]
[1752276233836,0.40755837,117490.0,117480.0,0.37522]
[1752276234822,0.025516,117490.0,117480.0,0.37522]
[1752276235027,0.40755837,117490.0,117480.0,0.37522]
[1752276236308,0.72204237,117510.0,117490.0,0.0303]
[1752276236514,0.72204237,117510.0,117500.0,0.16587]
[1752276237107,0.74755437,117510.0,117500.0,0.16587]
[1752276237380,0.74955437,117510.0,117500.0,0.16587]
[1752276237563,0.8709943,117510.0,117500.0,0.13044]
[1752276237944,0.8709943,117510.0,117500.0,0.3344]
[1752276239230,0.8729943,117510.0,117500.0,0.3344]
[1752276242106,0.8400943,117510.0,117500.0,0.3344]
[1752276242487,0.367512,117510.0,117500.0,0.37193]
[1752276242685,0.74955437,117510.0,117500.0,0.37193]
[1752276257402,0.75155437,117510.0,117500.0,0.37193]
[1752276257782,0.74955437,117510.0,117500.0,0.37193]
[1752276267109,0.94041546,117510.0,117500.0,0.37193]
[1752276281575,0.94252546,117510.0,117500.0,0.37193]
[1752276283503,0.94041546,117510.0,117500.0,0.37193]
[1752276286928,0.65396373,117510.0,117500.0,0.37193]
[1752276289486,0.94041546,117510.0,117500.0,0.37193]
[1752276293932,0.65396373,117510.0,117500.0,0.37193]
[1752276294546,0.65595373,117510.0,117500.0,0.37193]
[1752276300017,0.94240546,117510.0,117500.0,0.37193]
[1752276300695,0.65396373,117510.0,117500.0,0.37193]
[1752276301605,0.65595373,117510.0,117500.0,0.37193]
[1752276301816,0.94240546,117510.0,117500.0,0.37193]
[1752276302929,0.94240546,117510.0,117500.0,0.35563]
[1752276303153,0.94240546,117510.0,117500.0,0.37213]
[1752276304215,0.94240546,117510.0,117500.0,0.35563]
[1752276308891,0.94240546,117510.0,117500.0,0.35266]
[1752276311713,0.94240546,117510.0,117500.0,0.35565]
[1752276317746,0.369502,117510.0,117500.0,0.37125]
[1752276317925,0.94041546,117510.0,117500.0,0.37125]
[1752276321407,0.94250546,117510.0,117500.0,0.37125]
[1752276326649,0.94250546,117510.0,117500.0,0.35565]
[1752276334862,0.94250546,117510.0,117500.0,0.35525]
[1752276335837,0.94250546,117510.0,117500.0,0.35226]
[1752276340967,0.94250546,117510.0,117500.0,0.22222]
[1752276341196,0.94250546,117510.0,117500.0,0.35222]
[1752276341545,0.60250546,117510.0,117500.0,0.35222]
[1752276346029,0.60250546,117510.0,117500.0,0.35533]
[1752276346206,0.60250546,117510.0,117500.0,0.35222]
[1752276356973,0.60250546,117510.0,117500.0,0.35534]
[1752276358296,0.60250546,117510.0,117500.0,0.37134]
[1752276358455,0.60041546,117510.0,117500.0,0.37134]
[1752276378966,0.60245546,117510.0,117500.0,0.37134]
[1752276381251,0.01645627,117530.0,117500.0,0.37134]
[1752276381518,0.01645627,117530.0,117510.0,0.00506747]
[1752276381727,0.62645173,117520.0,117510.0,0.00506747]
[1752276381946,0.62645173,117520.0,117510.0,0.14708747]
[1752276382148,0.62645173,117520.0,117510.0,0.16574747]
[1752276382629,0.62645173,117520.0,117510.0,0.16868747]
[1752276383034,0.91290346,117520.0,117510.0,0.16868747]
[1752276385099,0.91290346,117520.0,117510.0,0.17168747]
[1752276385914,0.91290346,117520.0,117510.0,0.17368747]
[1752276386111,0.91290346,117520.0,117510.0,0.17156]
[1752276389831,0.34,117520.0,117510.0,0.17156]
[1752276389970,0.91290346,117520.0,117510.0,0.17156]
[1752276391520,0.57290346,117520.0,117510.0,0.17156]
[1752276393337,0.91290346,117520.0,117510.0,0.17156]
[1752276396643,0.34,117520.0,117510.0,0.17156]
[1752276396863,0.91290346,117520.0,117510.0,0.17156]
[1752276397231,0.62645173,117520.0,117510.0,0.25698993]
[1752276397454,0.28645173,117520.0,117510.0,0.25698993]
[1752276397661,0.28645173,117520.0,117510.0,0.25728993]
[1752276401474,0.27625695,117520.0,117510.0,0.25728993]
[1752276406467,0.56270868,117520.0,117510.0,0.25728993]
[1752276409105,0.57290346,117520.0,117510.0,0.25618993]
[1752276411290,0.56270867,117520.0,117510.0,0.25618993]
[1752276412722,0.35645627,117530.0,117510.0,0.25618993]
[1752276412932,0.35645627,117530.0,117520.0,0.00212729]
[1752276413125,0.35856627,117530.0,117520.0,0.01822729]
[1752276414226,0.93146973,117530.0,117520.0,0.22214729]
[1752276414476,0.93146973,117530.0,117520.0,0.22002]
[1752276414634,0.93146973,117530.0,117520.0,0.22102]
[1752276418559,0.93146973,117530.0,117520.0,0.35098]
[1752276421351,0.92127488,117530.0,117520.0,0.35098]
[1752276422541,0.63482315,117530.0,117520.0,0.35617]
[1752276423399,0.92127488,117530.0,117520.0,0.35617]
[1752276423584,0.63482315,117530.0,117520.0,0.35617]
[1752276424448,0.63271315,117530.0,117520.0,0.37137]
[1752276431411,0.62251843,117530.0,117520.0,0.37137]
[1752276431677,0.62462843,117530.0,117520.0,0.37137]
[1752276434912,0.91108016,117530.0,117520.0,0.35098]
[1752276435122,1.32089512,117530.0,117520.0,0.20492]
[1752276435496,1.32089512,117530.0,117520.0,0.33484]
[1752276436083,1.32089512,117530.0,117520.0,0.20492]
[1752276436284,1.32089512,117530.0,117520.0,0.33484]
[1752276436935,1.03444339,117530.0,117520.0,0.33484]
[1752276451095,1.01884339,117530.0,117520.0,0.33484]
[1752276451529,0.93341346,117530.0,117520.0,0.33484]
[1752276451748,0.91501346,117530.0,117520.0,0.35054]
[1752276453323,0.91501346,117530.0,117520.0,0.33484]
[1752276454574,0.91821346,117530.0,117520.0,0.33484]
[1752276459525,0.91501346,117530.0,117520.0,0.33484]
[1752276462476,0.91501346,117530.0,117520.0,0.35144]
[1752276462958,0.91501346,117530.0,117520.0,0.33484]
[1752276463817,1.03494339,117530.0,117520.0,0.20492]
[1752276464031,2.28848014,117530.0,117520.0,0.20492]
[1752276464242,2.28848014,117530.0,117520.0,0.33476]
[1752276464464,2.28892795,117530.0,117520.0,0.33476]
[1752276465383,0.04554085,117510.0,117500.0,0.002]
[1752276465595,2.19181116,117510.0,117500.0,0.13184]
[1752276465814,0.38554085,117500.0,117490.0,0.20392]
[1752276466029,2.19181116,117500.0,117490.0,0.20392]
[1752276466242,2.19500116,117500.0,117490.0,0.20392]
[1752276466886,1.24075592,117500.0,117490.0,0.3338]
[1752276467923,1.24275592,117500.0,117490.0,0.3338]
[1752276468959,1.24375592,117500.0,117490.0,0.3338]
[1752276469170,1.29462143,117500.0,117490.0,0.3338]
[1752276481515,0.04694085,117490.0,117460.0,0.24405]
[1752276481735,0.04694085,117490.0,117460.0,0.24608]
[1752276481736,0.72420257,117470.0,117460.0,0.24608]
[1752276482192,0.74972357,117470.0,117460.0,0.24608]
[1752276482643,0.74972357,117470.0,117460.0,0.37596]
[1752276482850,0.74972357,117470.0,117460.0,0.37696]
[1752276483278,0.74972357,117470.0,117460.0,0.37596]
[1752276483498,0.74972357,117470.0,117460.0,0.37796]
[1752276484682,0.74972357,117470.0,117460.0,0.37896]
[1752276485081,0.74972357,117470.0,117460.0,0.37796]
[1752276485291,0.74972357,117470.0,117460.0,0.37596]
[1752276485492,0.7583082,117470.0,117460.0,0.37596]
[1752276485695,0.7583082,117470.0,117460.0,0.37696]
[1752276489216,0.7563382,117470.0,117460.0,0.37696]
[1752276489427,0.34858463,117470.0,117460.0,0.37696]
[1752276490173,0.7308172,117470.0,117460.0,0.37696]
[1752276491894,0.34858463,117470.0,117460.0,0.37696]
[1752276492102,0.7308172,117470.0,117460.0,0.37696]
[1752276492753,0.00858463,117470.0,117460.0,0.37696]
[1752276493176,0.34,117480.0,117470.0,0.0313]
[1752276493406,0.72223257,117480.0,117470.0,0.03333]
[1752276493838,0.72223257,117480.0,117470.0,0.03658]
[1752276494468,0.72323257,117480.0,117470.0,0.03658]
[1752276496282,0.72423257,117480.0,117470.0,0.03658]
[1752276496704,0.35071144,117480.0,117470.0,0.0387082]
[1752276497331,0.01071144,117480.0,117470.0,0.0387082]
[1752276498804,0.00971144,117480.0,117470.0,0.0387082]
[1752276499433,0.00871144,117480.0,117470.0,0.0387082]
[1752276499878,0.74774857,117490.0,117480.0,0.0315]
[1752276500095,0.74774857,117490.0,117480.0,0.16345]
[1752276500304,0.74774857,117490.0,117480.0,0.1666]
[1752276501427,0.74874857,117490.0,117480.0,0.1666]
[1752276501867,0.74974857,117490.0,117480.0,0.1666]
[1752276502076,0.74974857,117490.0,117480.0,0.16651]
[1752276503558,0.75831894,117490.0,117480.0,0.16651]
[1752276516035,0.75831894,117490.0,117480.0,0.37051]
[1752276516856,0.66260435,117490.0,117480.0,0.37051]
[1752276517060,0.37608637,117490.0,117480.0,0.37051]
[1752276517335,0.66260435,117490.0,117480.0,0.37051]
[1752276520243,0.66273478,117490.0,117480.0,0.37051]
[1752276521290,0.66260435,117490.0,117480.0,0.37037957]
[1752276524310,0.65240536,117490.0,117480.0,0.37037957]
[1752276533012,0.63708835,117490.0,117480.0,0.37037957]
[1752276534370,0.62688937,117490.0,117480.0,0.37037957]
[1752276541284,0.34037139,117490.0,117480.0,0.37037957]
[1752276541662,0.62688937,117490.0,117480.0,0.37029957]
[1752276544534,0.61669098,117490.0,117480.0,0.37029957]
[1752276546361,0.330173,117490.0,117480.0,0.37029957]
[1752276546564,0.61669098,117490.0,117480.0,0.37029957]
[1752276550601,0.61669098,117490.0,117480.0,0.24049957]
[1752276550799,0.61669098,117490.0,117480.0,0.37025957]
[1752276553866,0.61669098,117490.0,117480.0,0.24049957]
[1752276554066,0.61669098,117490.0,117480.0,0.37025957]
[1752276554564,0.60649256,117490.0,117480.0,0.37025957]
[1752276559103,0.31140421,117490.0,117480.0,0.37025957]
[1752276559311,0.002,117490.0,117480.0,1.02872546]
[1752276559520,0.002,117490.0,117480.0,0.74220748]
[1752276560137,0.001,117490.0,117480.0,0.74220748]
[1752276560559,0.28651798,117500.0,117480.0,0.74220748]
[1752276560764,0.28651798,117500.0,117490.0,0.0313]
[1752276560965,0.28651798,117500.0,117490.0,0.03652]
[1752276562197,0.00869459,117510.0,117490.0,0.03652]
[1752276562417,0.28651798,117500.0,117490.0,0.03864784]
[1752276562619,0.28651798,117500.0,117490.0,0.16836784]
[1752276564461,0.27632159,117500.0,117490.0,0.16836784]
[1752276566325,0.28651798,117500.0,117490.0,0.16836784]
[1752276573404,0.00851937,117510.0,117490.0,0.16836784]
[1752276573630,0.28651798,117500.0,117490.0,0.16836784]
[1752276574380,0.27632154,117500.0,117490.0,0.16836784]
[1752276584351,0.26612491,117500.0,117490.0,0.16836784]
[1752276588295,0.26612491,117500.0,117490.0,0.37228784]
[1752276588494,0.26612491,117500.0,117490.0,0.37016]
[1752276592060,0.29526481,117510.0,117490.0,0.37016]
[1752276592367,0.28972798,117510.0,117490.0,0.37016]
[1752276592914,0.28972798,117510.0,117500.0,0.20392]
[1752276593111,0.29181798,117510.0,117500.0,0.20392]
[1752276593338,0.30041727,117510.0,117500.0,0.20392]
[1752276594508,0.29022073,117510.0,117500.0,0.20392]
[1752276594724,0.29122073,117510.0,117500.0,0.20392]
[1752276595223,0.29222073,117510.0,117500.0,0.20392]
[1752276597204,0.30241727,117510.0,117500.0,0.20392]
[1752276599627,0.62043525,117510.0,117500.0,0.20392]
[1752276599865,1.04586518,117510.0,117500.0,0.20392]
[1752276600086,1.07137818,117510.0,117500.0,0.33352]
[1752276601383,1.07137818,117510.0,117500.0,0.20392]
[1752276601584,1.07137818,117510.0,117500.0,0.33352]
[1752276602647,0.49834222,117510.0,117500.0,0.33352]
[1752276602871,1.07137818,117510.0,117500.0,0.33352]
[1752276617639,1.05637818,117510.0,117500.0,0.33352]
[1752276618033,1.03987818,117510.0,117500.0,0.33352]
[1752276618501,0.7501502,117510.0,117500.0,0.33352]
[1752276619902,0.46363222,117510.0,117500.0,0.33352]
[1752276620120,0.7501502,117510.0,117500.0,0.33352]
[1752276620927,1.03666818,117510.0,117500.0,0.33352]
[1752276621562,0.7501502,117510.0,117500.0,0.33352]
[1752276622633,1.03986818,117510.0,117500.0,0.33352]
[1752276636187,1.03666818,117510.0,117500.0,0.34942]
[1752276637065,0.46363222,117510.0,117500.0,0.34942]
[1752276637300,0.7501502,117510.0,117500.0,0.34942]
[1752276637968,0.7501502,117510.0,117500.0,0.35145]
[1752276638169,0.7501502,117510.0,117500.0,0.36755]
[1752276640157,0.7501502,117510.0,117500.0,0.35145]
[1752276641930,0.7501502,117510.0,117500.0,0.34942]
[1752276643648,0.46363222,117510.0,117500.0,0.34942]
[1752276643897,0.7501502,117510.0,117500.0,0.34942]
[1752276648251,1.03666818,117510.0,117500.0,0.34942]
[1752276648884,0.46363222,117510.0,117500.0,0.34942]
[1752276649046,1.03666818,117510.0,117500.0,0.34942]
[1752276650149,1.03666818,117510.0,117500.0,0.33352]
[1752276658790,0.46363222,117510.0,117500.0,0.33352]
[1752276658999,1.03666818,117510.0,117500.0,0.33352]
[1752276672000,1.03666818,117510.0,117500.0,0.34862]
[1752276672810,1.12247182,117510.0,117500.0,0.33332]
[1752276673012,1.06944903,117510.0,117500.0,0.33332]
[1752276673343,0.51171307,117510.0,117500.0,0.33332]
[1752276673662,1.08474903,117510.0,117500.0,0.33332]
[1752276673866,1.37126701,117510.0,117500.0,0.20392]
[1752276674064,1.37126701,117510.0,117500.0,0.33344]
[1752276675236,1.37026701,117510.0,117500.0,0.33344]
[1752276675440,0.04494085,117490.0,117470.0,0.20396]
[1752276675646,1.00043589,117480.0,117470.0,0.20396]
[1752276675858,1.00357589,117480.0,117470.0,0.20396]
[1752276675999,1.02909589,117480.0,117470.0,0.20396]
[1752276676200,1.02595589,117480.0,117470.0,0.20396]
[1752276676438,1.02595589,117480.0,117470.0,0.21906]
[1752276676631,1.02595589,117480.0,117470.0,0.3487]
[1752276676846,0.36552,117480.0,117470.0,0.36966]
[1752276676990,0.34,117480.0,117470.0,0.36966]
[1752276677206,0.34,117480.0,117470.0,0.65617798]
[1752276677767,0.34,117480.0,117470.0,0.36966]
[1752276678341,0.62651798,117480.0,117470.0,0.37066]
[1752276679525,0.34,117480.0,117470.0,0.37066]
[1752276679738,0.62651798,117480.0,117470.0,0.37066]
[1752276687506,0.34,117480.0,117470.0,0.37066]
[1752276687709,0.62651798,117480.0,117470.0,0.37066]
[1752276687921,0.34,117480.0,117470.0,0.37066]
[1752276688154,0.62651798,117480.0,117470.0,0.37066]
[1752276696962,0.62862798,117480.0,117470.0,0.35486]
[1752276697163,0.62862798,117480.0,117470.0,0.35167]
[1752276697544,0.3452,117480.0,117470.0,0.33484]
[1752276697742,0.63171798,117480.0,117470.0,0.33484]
[1752276697948,0.91823596,117480.0,117470.0,0.33484]
[1752276704895,0.62651798,117480.0,117470.0,0.37183]
[1752276705113,0.32980045,117480.0,117470.0,0.37183]
[1752276705730,0.61631843,117480.0,117470.0,0.37183]
[1752276707284,0.32980045,117480.0,117470.0,0.37183]
[1752276707685,0.61631843,117480.0,117470.0,0.37183]
[1752276713579,0.32980045,117480.0,117470.0,0.37183]
[1752276713813,0.64183543,117480.0,117470.0,0.37183]
[1752276714227,0.35531745,117480.0,117470.0,0.37183]
[1752276714445,0.64183543,117480.0,117470.0,0.37183]
[1752276715094,0.63163594,117480.0,117470.0,0.37183]
[1752276716346,0.34511796,117480.0,117470.0,0.37183]
[1752276716572,0.63163594,117480.0,117470.0,0.37183]
[1752276719787,0.34511796,117480.0,117470.0,0.37183]
[1752276720198,0.63163594,117480.0,117470.0,0.37183]
[1752276721602,0.63163594,117480.0,117470.0,0.37187]
[1752276721811,0.60611894,117480.0,117470.0,0.24195]
[1752276722013,0.63361694,117480.0,117470.0,0.24195]
[1752276722214,0.63361694,117480.0,117470.0,0.37187]
[1752276723054,0.63361694,117480.0,117470.0,0.24195]
[1752276723260,0.63361694,117480.0,117470.0,0.37187]
[1752276724441,0.92013492,117480.0,117470.0,0.33488]
[1752276724643,0.92310492,117480.0,117470.0,0.33488]
[1752276724769,0.63361694,117480.0,117470.0,0.35128]
[1752276725420,0.34709896,117480.0,117470.0,0.35128]
[1752276725646,0.63361694,117480.0,117470.0,0.35128]
[1752276726223,0.63361694,117480.0,117470.0,0.33488]
[1752276726224,0.92013492,117480.0,117470.0,0.33488]
[1752276726428,0.89461692,117480.0,117470.0,0.33488]
[1752276728312,0.60809894,117480.0,117470.0,0.33488]
[1752276728775,0.60809894,117480.0,117470.0,0.35128]
[1752276730187,0.59789936,117480.0,117470.0,0.35128]
[1752276730623,0.59789936,117480.0,117470.0,0.35647]
[1752276734257,0.59789936,117480.0,117470.0,0.35328]
[1752276740248,0.28849798,117480.0,117470.0,0.35328]
[1752276741989,0.28849798,117480.0,117470.0,0.33688]
[1752276742407,0.57501596,117480.0,117470.0,0.33688]
[1752276742611,0.28849798,117480.0,117470.0,0.33688]
[1752276743042,0.28849798,117480.0,117470.0,0.35238]
[1752276744167,0.57501596,117480.0,117470.0,0.35038]
[1752276744376,0.57794596,117480.0,117470.0,0.33484]
[1752276754128,0.59304596,117480.0,117470.0,0.33484]
[1752276754350,1.01847589,117480.0,117470.0,0.20496]
[1752276754554,1.01847589,117480.0,117470.0,0.33472]
[1752276754772,1.03377589,117480.0,117470.0,0.33472]
[1752276756835,0.34,117470.0,117460.0,0.004]
[1752276757037,1.03391589,117470.0,117460.0,0.1338]
[1752276757644,1.05943989,117470.0,117460.0,0.1338]
[1752276758660,1.06043989,117470.0,117460.0,0.1338]
[1752276759563,1.06143989,117470.0,117460.0,0.1338]
[1752276766433,1.11244989,117470.0,117460.0,0.1338]
[1752276766570,1.06143989,117470.0,117460.0,0.1338]
[1752276768696,1.06143989,117470.0,117460.0,0.13392]
[1752276769606,1.06143989,117470.0,117460.0,0.004]
[1752276769826,1.06143989,117470.0,117460.0,0.13392]
[1752276770609,1.06143989,117470.0,117460.0,0.004]
[1752276770815,1.06143989,117470.0,117460.0,0.13392]
[1752276771594,1.06143989,117470.0,117460.0,0.004]
[1752276771804,1.06143989,117470.0,117460.0,0.13388]
[1752276773553,1.03591589,117470.0,117460.0,0.13388]
[1752276778784,1.03591589,117470.0,117460.0,0.004]
[1752276779003,1.03591589,117470.0,117460.0,0.13384]
[1752276780746,1.03591589,117470.0,117460.0,0.004]
[1752276780957,1.03591589,117470.0,117460.0,0.13384]
[1752276782068,1.03591589,117470.0,117450.0,0.204]
[1752276782289,0.69164589,117460.0,117450.0,0.204]
[1752276782507,0.69367589,117460.0,117450.0,0.204]
[1752276782727,0.67857589,117460.0,117450.0,0.204]
[1752276782954,0.66357589,117460.0,117450.0,0.204]
[1752276783421,0.66357589,117460.0,117450.0,0.3338]
[1752276784054,0.66357589,117460.0,117450.0,0.3348]
[1752276784986,0.66357589,117460.0,117450.0,0.3338]
[1752276785857,0.69447589,117460.0,117450.0,0.3338]
[1752276786461,0.67857589,117460.0,117450.0,0.3338]
[1752276787091,0.67857589,117460.0,117450.0,0.33384]
[1752276787728,0.66357589,117460.0,117450.0,0.33384]
[1752276788407,0.66357589,117460.0,117450.0,0.33388]
[1752276789946,0.0154,117450.0,117430.0,0.22014]
[1752276790154,0.72932077,117460.0,117440.0,0.12992]
[1752276790354,0.08745993,117450.0,117440.0,0.12992]
[1752276791154,0.37397791,117450.0,117440.0,0.12992]
[1752276791359,0.37497791,117450.0,117440.0,0.12992]
[1752276791959,0.66049589,117450.0,117440.0,0.12992]
[1752276792402,0.66557589,117450.0,117440.0,0.12992]
[1752276793256,0.3716,117440.0,117430.0,0.20404]
[1752276793513,1.32169387,117440.0,117430.0,0.33404]
[1752276794154,1.03517589,117440.0,117430.0,0.33404]
[1752276794743,1.32169387,117440.0,117430.0,0.33404]
[1752276796161,1.31994257,117440.0,117430.0,0.33404]
[1752276797719,1.344917,117440.0,117430.0,0.33404]
[1752276797954,1.345917,117440.0,117430.0,0.33404]
[1752276801320,1.329717,117440.0,117430.0,0.33404]
[1752276801938,1.314317,117440.0,117430.0,0.33404]
[1752276802363,1.329517,117440.0,117430.0,0.33404]
[1752276813540,1.314317,117440.0,117430.0,0.33404]
[1752276815574,1.329817,117440.0,117430.0,0.33404]
[1752276817646,1.314317,117440.0,117430.0,0.33404]
[1752276820126,1.02779902,117440.0,117430.0,0.33404]
[1752276820301,1.314317,117440.0,117430.0,0.33404]
[1752276821311,0.45476306,117440.0,117430.0,0.33404]
[1752276821552,1.02779902,117440.0,117430.0,0.33404]
[1752276828846,1.02779902,117440.0,117430.0,0.20404]
[1752276829064,1.02779902,117440.0,117430.0,0.3338]
[1752276832714,1.02471902,117440.0,117430.0,0.3338]
[1752276835923,1.02471902,117440.0,117430.0,0.3501]
[1752276838758,1.02471902,117440.0,117430.0,0.14606]
[1752276847076,1.07574902,117440.0,117430.0,0.14606]
[1752276847290,1.02471902,117440.0,117430.0,0.14606]
[1752276856648,1.311237,117440.0,117430.0,0.12976]
[1752276856855,1.314427,117440.0,117430.0,0.12976]
[1752276858068,1.311237,117440.0,117430.0,0.12976]
[1752276858397,1.314427,117440.0,117430.0,0.12976]
[1752276860368,1.314427,117440.0,117430.0,0.12964]
[1752276860563,1.339961,117440.0,117430.0,0.12964]
[1752276861455,1.371561,117440.0,117430.0,0.12964]
[1752276861877,1.373561,117440.0,117430.0,0.12964]
[1752276862293,1.373561,117440.0,117420.0,0.20608]
[1752276862542,1.31977387,117430.0,117420.0,0.20608]
[1752276862774,1.32180387,117430.0,117420.0,0.12964]
[1752276863200,1.34734087,117430.0,117400.0,0.03649]
[1752276863361,0.91303596,117410.0,117400.0,0.03649]
[1752276863582,0.91303596,117410.0,117400.0,0.03863]
[1752276864425,0.91303596,117410.0,117400.0,0.16827]
[1752276864633,0.99846589,117410.0,117400.0,0.16827]
[1752276865845,0.71194791,117410.0,117400.0,0.16827]
[1752276867734,0.72056665,117410.0,117400.0,0.16827]
[1752276871796,0.43404867,117410.0,117400.0,0.16827]
[1752276872015,0.34861874,117410.0,117400.0,0.45478798]
[1752276872626,0.34861874,117410.0,117400.0,0.16827]
[1752276873468,0.63513672,117410.0,117400.0,0.16827]
[1752276873972,0.00861874,117410.0,117400.0,0.16827]
[1752276874177,0.29513672,117410.0,117400.0,0.16827]
[1752276874335,0.28651798,117420.0,117400.0,0.13717]
[1752276874580,0.71194791,117420.0,117410.0,0.032]
[1752276874801,0.71194791,117420.0,117410.0,0.03713]
[1752276875741,1.00707697,117420.0,117410.0,0.03713]
[1752276875944,1.00807697,117420.0,117410.0,0.03713]
[1752276877209,1.00907697,117420.0,117410.0,0.03713]
[1752276877729,0.72255899,117420.0,117410.0,0.03713]
[1752276879794,1.00907697,117420.0,117410.0,0.03713]
[1752276880766,1.00907697,117420.0,117410.0,0.24125]
[1752276887458,0.72255899,117420.0,117410.0,0.24125]
[1752276888297,1.00907697,117420.0,117410.0,0.24125]
[1752276889822,0.43604101,117420.0,117410.0,0.24125]
[1752276889985,1.00907697,117420.0,117410.0,0.24125]
[1752276895929,0.72255899,117420.0,117410.0,0.24125]
[1752276897537,1.00907697,117420.0,117410.0,0.24125]
[1752276905622,0.01061108,117420.0,117410.0,0.52776798]
[1752276906452,0.00961108,117420.0,117410.0,0.52776798]
[1752276906860,0.00961108,117420.0,117410.0,0.52876798]
[1752276907484,0.001,117420.0,117410.0,0.52876798]
[1752276908104,0.34,117430.0,117420.0,0.031]
[1752276908308,0.34,117430.0,117420.0,0.58103708]
[1752276908513,0.34,117430.0,117420.0,0.29562]
[1752276909833,0.34,117430.0,117420.0,0.29662]
[1752276911567,0.34869834,117430.0,117420.0,0.29662]
[1752276912003,0.63521632,117430.0,117420.0,0.29662]
[1752276913960,0.62651798,117430.0,117420.0,0.29662]
[1752276916222,0.63498837,117430.0,117420.0,0.29662]
[1752276924804,0.63498837,117430.0,117420.0,0.29662]
[1752276925204,0.6247841,117430.0,117420.0,0.29662]
[1752276926763,0.33826612,117430.0,117420.0,0.29662]
[1752276926973,0.28851798,117450.0,117440.0,0.0152]
[1752276927192,0.28851798,117450.0,117440.0,0.29527]
[1752276928366,0.002,117450.0,117440.0,0.29527]
[1752276928776,0.28851798,117450.0,117440.0,0.29527]
[1752276929207,0.29694537,117450.0,117440.0,0.29527]
[1752276931171,0.29794537,117450.0,117440.0,0.29527]
[1752276931594,0.29994537,117450.0,117440.0,0.29527]
[1752276937673,0.01342739,117450.0,117440.0,0.29527]
[1752276937879,0.00322487,117450.0,117440.0,0.29527]
[1752276938978,0.28974285,117450.0,117440.0,0.29527]
[1752276940460,0.00322487,117450.0,117440.0,0.29527]
[1752276940706,0.28974285,117450.0,117440.0,0.29527]
[1752276941637,0.28951798,117450.0,117440.0,0.29527]
[1752276942604,0.003,117450.0,117440.0,0.58178798]
[1752276943090,0.003,117450.0,117440.0,0.66721791]
[1752276947910,0.28767681,117460.0,117450.0,0.032]
[1752276948084,0.28767681,117460.0,117450.0,0.03608856]
[1752276948321,0.28767681,117460.0,117450.0,0.03914856]
[1752276949968,0.29067681,117460.0,117450.0,0.03914856]
[1752276950615,0.29267681,117460.0,117450.0,0.03914856]
[1752276952869,0.29267681,117460.0,117450.0,0.24318856]
[1752276953085,0.29267681,117460.0,117450.0,0.24106]
[1752276955596,0.005,117460.0,117450.0,0.24106]
[1752276955782,0.30016264,117460.0,117450.0,0.24106]
[1752276956035,0.29151798,117460.0,117450.0,0.24106]
[1752276956928,0.28851798,117460.0,117450.0,0.24106]
[1752276957844,0.5648351,117460.0,117450.0,0.24106]
[1752276959186,0.5658351,117460.0,117450.0,0.24106]
[1752276959396,0.57626236,117460.0,117450.0,0.24106]
[1752276968038,0.57626236,117460.0,117450.0,0.22536]
[1752276970422,0.58446322,117460.0,117450.0,0.24086]
[1752276970621,0.29794524,117460.0,117450.0,0.24086]
[1752276971481,0.58446322,117460.0,117450.0,0.24086]
[1752276971781,0.01142726,117460.0,117450.0,0.24086]
[1752276972081,0.57303596,117460.0,117450.0,0.24086]
[1752276974923,0.57303596,117460.0,117450.0,0.22536]
[1752276975441,0.58138846,117460.0,117450.0,0.22536]
[1752276982048,0.57118753,117460.0,117450.0,0.22536]
[1752276984053,0.56283503,117460.0,117450.0,0.24086]
[1752276984485,0.28651798,117460.0,117450.0,0.24086]
[1752276985163,0.28651798,117460.0,117450.0,0.2404773]
[1752276986594,0.01429524,117470.0,117450.0,0.2404773]